[Event "*** Titled Tuesday Blitz"]
[Site "Chess.com"]
[Date "2021.04.27"]
[Round "5"]
[White "InitiatingASC"]
[Black "OlifantCZ"]
[Result "0-1"]
[WhiteElo "2395"]
[BlackElo "2269"]
[TimeControl "180+1"]
[EndTime "10:56:05 PDT"]
[Termination "OlifantCZ won by resignation"]

1. d4 {[%clk 0:03:00.9]} 1... Nf6 {[%clk 0:02:59.2]} 2. c4 {[%clk 0:03:00.6]}
2... g6 {[%clk 0:02:59.1]} 3. Nc3 {[%clk 0:03:00.8]} 3... Bg7 {[%clk 0:02:59.5]}
4. e4 {[%clk 0:03:00.9]} 4... O-O {[%clk 0:02:56.6]} 5. Nf3 {[%clk 0:03:01]}
5... d6 {[%clk 0:02:55.1]} 6. Be2 {[%clk 0:03:00.2]} 6... c5 {[%clk 0:02:54.5]}
7. dxc5 {[%clk 0:02:55.8]} 7... dxc5 {[%clk 0:02:54.2]} 8. Qxd8 {[%clk
0:02:53.3]} 8... Rxd8 {[%clk 0:02:53.8]} 9. Be3 {[%clk 0:02:52.7]} 9... b6
{[%clk 0:02:53.3]} 10. h3 {[%clk 0:02:52.7]} 10... Nc6 {[%clk 0:02:52.7]} 11.
Rd1 {[%clk 0:02:42.6]} 11... Bb7 {[%clk 0:02:48.3]} 12. O-O {[%clk 0:02:37.8]}
12... Nb4 {[%clk 0:02:42.3]} 13. Nd5 {[%clk 0:02:25.3]} 13... Nfxd5 {[%clk
0:02:31.8]} 14. cxd5 {[%clk 0:02:18.8]} 14... Bxb2 {[%clk 0:02:31.1]} 15. Rb1
{[%clk 0:02:03.3]} 15... Bg7 {[%clk 0:02:30]} 16. a3 {[%clk 0:02:03.6]} 16...
Na6 {[%clk 0:02:27.6]} 17. Bg5 {[%clk 0:01:58.8]} 17... Kf8 {[%clk 0:02:24.6]}
18. Rfc1 {[%clk 0:01:44.1]} 18... h6 {[%clk 0:02:23.9]} 19. Bf4 {[%clk 0:01:41]}
19... Rac8 {[%clk 0:02:18.8]} 20. Nd2 {[%clk 0:01:31.1]} 20... e6 {[%clk
0:02:10.9]} 21. Nc4 {[%clk 0:01:09.4]} 21... g5 {[%clk 0:01:39.6]} 22. Nd6
{[%clk 0:01:01.2]} 22... gxf4 {[%clk 0:01:35.6]} 23. Nxb7 {[%clk 0:01:00.3]}
23... Nc7 {[%clk 0:01:26.3]} 24. Nxd8 {[%clk 0:00:37]} 24... Rxd8 {[%clk
0:01:26.4]} 25. dxe6 {[%clk 0:00:33.9]} 25... Nxe6 {[%clk 0:01:25.1]} 26. a4
{[%clk 0:00:31.7]} 26... Rd4 {[%clk 0:01:17.6]} 27. a5 {[%clk 0:00:30.6]} 27...
Rxe4 {[%clk 0:01:16.7]} 28. Bf3 {[%clk 0:00:24.6]} 28... Rb4 {[%clk 0:01:13.9]}
29. Rxb4 {[%clk 0:00:15.9]} 29... cxb4 {[%clk 0:01:13.2]} 30. a6 {[%clk
0:00:13.6]} 30... Nc5 {[%clk 0:01:08.2]} 31. Be2 {[%clk 0:00:13.3]} 31... b3
{[%clk 0:01:06.5]} 32. Rc4 {[%clk 0:00:12.6]} 32... b2 {[%clk 0:01:02.9]} 33.
Rb4 {[%clk 0:00:12.9]} 33... Bc3 {[%clk 0:00:58.7]} 34. Rb5 {[%clk 0:00:12.4]}
34... Nxa6 {[%clk 0:00:57.2]} 35. Bd3 {[%clk 0:00:08.7]} 35... Nc5 {[%clk
0:00:54.3]} 36. Bb1 {[%clk 0:00:08.9]} 36... Ke7 {[%clk 0:00:51.9]} 37. Kf1
{[%clk 0:00:09.3]} 37... Ke6 {[%clk 0:00:52]} 38. Ke2 {[%clk 0:00:10.2]} 38...
Kd6 {[%clk 0:00:48.8]} 39. Ba2 {[%clk 0:00:04.2]} 39... Kc6 {[%clk 0:00:47.5]}
40. Bc4 {[%clk 0:00:05.1]} 40... a6 {[%clk 0:00:44.2]} 41. Rxc5+ {[%clk
0:00:03.7]} 41... Kxc5 {[%clk 0:00:44.2]} 42. Bd3 {[%clk 0:00:04.5]} 42... a5
{[%clk 0:00:40.9]} 43. Kd1 {[%clk 0:00:04.9]} 43... Kd4 {[%clk 0:00:39.6]} 44.
Kc2 {[%clk 0:00:04]} 44... b1=Q+ {[%clk 0:00:38.5]} 45. Kxb1 {[%clk 0:00:03.6]}
45... Kxd3 {[%clk 0:00:39.2]} 0-1

[Event "*** Titled Tuesday Blitz"]
[Site "Chess.com"]
[Date "2021.04.27"]
[Round "5"]
[White "CM_rui"]
[Black "kidagent"]
[Result "1-0"]
[WhiteElo "2518"]
[BlackElo "2350"]
[TimeControl "180+1"]
[EndTime "10:56:07 PDT"]
[Termination "CM_rui won by checkmate"]

1. e4 {[%clk 0:03:00.9]} 1... c5 {[%clk 0:02:59.6]} 2. Nf3 {[%clk 0:03:00.8]}
2... d6 {[%clk 0:02:59.8]} 3. d4 {[%clk 0:03:00.2]} 3... cxd4 {[%clk 0:03:00.7]}
4. Nxd4 {[%clk 0:03:00.4]} 4... Nf6 {[%clk 0:03:01]} 5. f3 {[%clk 0:03:01]} 5...
a6 {[%clk 0:03:00.5]} 6. c4 {[%clk 0:03:01.3]} 6... e5 {[%clk 0:02:57.9]} 7. Nc2
{[%clk 0:03:01]} 7... Nc6 {[%clk 0:02:56.1]} 8. Nc3 {[%clk 0:03:01.5]} 8... Be7
{[%clk 0:02:52.8]} 9. Be2 {[%clk 0:03:02.1]} 9... O-O {[%clk 0:02:52.4]} 10. O-O
{[%clk 0:03:02.8]} 10... Be6 {[%clk 0:02:52.8]} 11. Be3 {[%clk 0:03:03.3]} 11...
Rc8 {[%clk 0:02:51.7]} 12. Rc1 {[%clk 0:03:03.8]} 12... Qa5 {[%clk 0:02:49.9]}
13. Qd2 {[%clk 0:02:55.8]} 13... Rfd8 {[%clk 0:02:46.6]} 14. b3 {[%clk
0:02:48.4]} 14... Rd7 {[%clk 0:02:28.6]} 15. a3 {[%clk 0:02:32.5]} 15... b5
{[%clk 0:02:20.8]} 16. b4 {[%clk 0:02:21.1]} 16... Qd8 {[%clk 0:02:09.2]} 17.
cxb5 {[%clk 0:02:19]} 17... axb5 {[%clk 0:02:09.2]} 18. Bxb5 {[%clk 0:02:16.1]}
18... d5 {[%clk 0:02:07]} 19. exd5 {[%clk 0:02:01.9]} 19... Nxd5 {[%clk
0:02:06.2]} 20. Nxd5 {[%clk 0:01:55.9]} 20... Rxd5 {[%clk 0:02:00.3]} 21. Qe2
{[%clk 0:01:56.4]} 21... Bf5 {[%clk 0:01:49.4]} 22. Rfd1 {[%clk 0:01:28.6]}
22... Nd4 {[%clk 0:01:32]} 23. Nxd4 {[%clk 0:00:50.6]} 23... exd4 {[%clk
0:01:16.7]} 24. Rxc8 {[%clk 0:00:48.2]} 24... Bxc8 {[%clk 0:01:16.3]} 25. Bf2
{[%clk 0:00:27.3]} 25... Be6 {[%clk 0:01:01.7]} 26. Bc4 {[%clk 0:00:27]} 26...
Rd6 {[%clk 0:00:53.4]} 27. Bxe6 {[%clk 0:00:21.7]} 27... fxe6 {[%clk 0:00:47.9]}
28. Qe4 {[%clk 0:00:12.9]} 28... Bf6 {[%clk 0:00:44.7]} 29. Bg3 {[%clk
0:00:12.9]} 29... e5 {[%clk 0:00:40.5]} 30. Bxe5 {[%clk 0:00:07.8]} 30... Bxe5
{[%clk 0:00:32.1]} 31. Qxe5 {[%clk 0:00:08.7]} 31... d3 {[%clk 0:00:32.6]} 32.
Rd2 {[%clk 0:00:08.8]} 32... Rc6 {[%clk 0:00:24.4]} 33. Kf2 {[%clk 0:00:06.8]}
33... Rc2 {[%clk 0:00:22.2]} 34. Qe6+ {[%clk 0:00:06.6]} 34... Kh8 {[%clk
0:00:20.5]} 35. Qe3 {[%clk 0:00:06.7]} 35... Rxd2+ {[%clk 0:00:18.1]} 36. Qxd2
{[%clk 0:00:07.6]} 36... Qd4+ {[%clk 0:00:18.2]} 37. Qe3 {[%clk 0:00:06.5]}
37... Qc3 {[%clk 0:00:16.6]} 38. Qe8# {[%clk 0:00:06]} 1-0

[Event "*** Titled Tuesday Blitz"]
[Site "Chess.com"]
[Date "2021.04.27"]
[Round "5"]
[White "Chessbard1972"]
[Black "Mikhal867"]
[Result "0-1"]
[WhiteElo "2257"]
[BlackElo "2439"]
[TimeControl "180+1"]
[EndTime "10:56:07 PDT"]
[Termination "Mikhal867 won on time"]

1. d4 {[%clk 0:02:37.1]} 1... g6 {[%clk 0:02:57.9]} 2. c4 {[%clk 0:02:35.3]}
2... Bg7 {[%clk 0:02:57.9]} 3. Nf3 {[%clk 0:02:35.9]} 3... d6 {[%clk 0:02:58]}
4. g3 {[%clk 0:02:35.7]} 4... Nf6 {[%clk 0:02:57.6]} 5. Bg2 {[%clk 0:02:36.2]}
5... O-O {[%clk 0:02:57.7]} 6. O-O {[%clk 0:02:36.8]} 6... Nbd7 {[%clk
0:02:57.7]} 7. Nc3 {[%clk 0:02:36.8]} 7... e5 {[%clk 0:02:57.7]} 8. e4 {[%clk
0:02:36.5]} 8... c6 {[%clk 0:02:57.7]} 9. h3 {[%clk 0:02:36.1]} 9... Qb6 {[%clk
0:02:56.8]} 10. Re1 {[%clk 0:02:36.3]} 10... Qb4 {[%clk 0:02:53.9]} 11. Bf1
{[%clk 0:02:34.4]} 11... exd4 {[%clk 0:02:47.8]} 12. Nxd4 {[%clk 0:02:29.4]}
12... Re8 {[%clk 0:02:45.4]} 13. a3 {[%clk 0:02:25.9]} 13... Qb6 {[%clk
0:02:45.1]} 14. Nf3 {[%clk 0:01:59.2]} 14... Nc5 {[%clk 0:02:37.7]} 15. Qc2
{[%clk 0:01:28.6]} 15... d5 {[%clk 0:02:27.5]} 16. cxd5 {[%clk 0:01:22.4]} 16...
cxd5 {[%clk 0:02:26.5]} 17. e5 {[%clk 0:01:22.5]} 17... Bf5 {[%clk 0:02:23.8]}
18. Qd1 {[%clk 0:01:18.9]} 18... Nfe4 {[%clk 0:02:15.9]} 19. Nxd5 {[%clk
0:01:12.9]} 19... Qb3 {[%clk 0:02:14.3]} 20. Be3 {[%clk 0:01:08.6]} 20... Rad8
{[%clk 0:02:08.2]} 21. Qxb3 {[%clk 0:00:59.4]} 21... Nxb3 {[%clk 0:02:06.1]} 22.
Rad1 {[%clk 0:00:59.9]} 22... Nxg3 {[%clk 0:01:45.6]} 23. fxg3 {[%clk
0:00:57.8]} 23... Be4 {[%clk 0:01:45.6]} 24. Ne7+ {[%clk 0:00:49.2]} 24... Kf8
{[%clk 0:01:43]} 25. Rxd8 {[%clk 0:00:47.1]} 25... Rxd8 {[%clk 0:01:42.9]} 26.
Ng5 {[%clk 0:00:46.9]} 26... Bc2 {[%clk 0:01:34]} 27. Nxg6+ {[%clk 0:00:37.8]}
27... Bxg6 {[%clk 0:01:24.9]} 28. Bc4 {[%clk 0:00:36.1]} 28... Nd4 {[%clk
0:01:20.6]} 29. Rf1 {[%clk 0:00:32.4]} 29... Bxe5 {[%clk 0:01:18.2]} 30. Bxf7
{[%clk 0:00:24.7]} 30... Ne2+ {[%clk 0:01:13.5]} 31. Kg2 {[%clk 0:00:21.4]}
31... Nxg3 {[%clk 0:01:00.7]} 32. Ne6+ {[%clk 0:00:10.6]} 32... Ke7 {[%clk
0:00:56.7]} 33. Bg5+ {[%clk 0:00:10.3]} 33... Kd7 {[%clk 0:00:48.5]} 34. Nxd8
{[%clk 0:00:09.8]} 34... Nxf1 {[%clk 0:00:45.9]} 35. Bxg6 {[%clk 0:00:08.8]}
35... hxg6 {[%clk 0:00:42.3]} 36. Kxf1 {[%clk 0:00:08.7]} 36... Bxb2 {[%clk
0:00:42.1]} 37. a4 {[%clk 0:00:08]} 37... b6 {[%clk 0:00:39.1]} 38. Nf7 {[%clk
0:00:06.4]} 38... a6 {[%clk 0:00:37.9]} 39. Kf2 {[%clk 0:00:01.4]} 39... b5
{[%clk 0:00:37.7]} 40. axb5 {[%clk 0:00:01.5]} 40... axb5 {[%clk 0:00:37.6]} 41.
Bd2 {[%clk 0:00:02]} 41... Ke6 {[%clk 0:00:36.7]} 0-1

[Event "*** Titled Tuesday Blitz"]
[Site "Chess.com"]
[Date "2021.04.27"]
[Round "5"]
[White "Fighterman91"]
[Black "WPWPWP-2015"]
[Result "1-0"]
[WhiteElo "2624"]
[BlackElo "2418"]
[TimeControl "180+1"]
[EndTime "10:56:10 PDT"]
[Termination "Fighterman91 won by checkmate"]

1. e4 {[%clk 0:03:00.9]} 1... e5 {[%clk 0:02:46.3]} 2. Nf3 {[%clk 0:02:56.2]}
2... Nc6 {[%clk 0:02:43.5]} 3. d4 {[%clk 0:02:56.3]} 3... exd4 {[%clk
0:02:43.3]} 4. Nxd4 {[%clk 0:02:57.2]} 4... Nf6 {[%clk 0:02:43.3]} 5. Nxc6
{[%clk 0:02:57.9]} 5... bxc6 {[%clk 0:02:42.4]} 6. e5 {[%clk 0:02:58.4]} 6...
Qe7 {[%clk 0:02:42.5]} 7. Qe2 {[%clk 0:02:59]} 7... Nd5 {[%clk 0:02:42.8]} 8. h4
{[%clk 0:02:59.5]} 8... f6 {[%clk 0:02:38.6]} 9. c4 {[%clk 0:02:56.9]} 9... Nb6
{[%clk 0:02:36.2]} 10. exf6 {[%clk 0:02:49.8]} 10... Qxe2+ {[%clk 0:02:33.2]}
11. Bxe2 {[%clk 0:02:49.5]} 11... gxf6 {[%clk 0:02:33.6]} 12. Bh5+ {[%clk
0:02:49.9]} 12... Kd8 {[%clk 0:02:33.6]} 13. b3 {[%clk 0:02:34]} 13... d5 {[%clk
0:02:33.1]} 14. Bb2 {[%clk 0:02:30.4]} 14... Be7 {[%clk 0:02:30.3]} 15. Nc3
{[%clk 0:02:09.3]} 15... Be6 {[%clk 0:02:28.9]} 16. O-O-O {[%clk 0:02:08.1]}
16... Rf8 {[%clk 0:02:04.5]} 17. Rhe1 {[%clk 0:02:04.2]} 17... Bg8 {[%clk
0:02:03.8]} 18. Bf3 {[%clk 0:01:26.4]} 18... Bd6 {[%clk 0:01:51.6]} 19. cxd5
{[%clk 0:01:24]} 19... cxd5 {[%clk 0:01:49.8]} 20. Nxd5 {[%clk 0:01:23.8]} 20...
Nxd5 {[%clk 0:01:47.9]} 21. Bxd5 {[%clk 0:01:24.5]} 21... Bxd5 {[%clk
0:01:47.7]} 22. Rxd5 {[%clk 0:01:25.4]} 22... Kd7 {[%clk 0:01:32.7]} 23. Rf5
{[%clk 0:01:24.6]} 23... Rae8 {[%clk 0:00:57.3]} 24. Rxe8 {[%clk 0:01:22.6]}
24... Rxe8 {[%clk 0:00:57.8]} 25. Bxf6 {[%clk 0:01:13.3]} 25... Rf8 {[%clk
0:00:23.1]} 26. g4 {[%clk 0:01:11.2]} 26... Ke6 {[%clk 0:00:21.1]} 27. Bd4
{[%clk 0:01:07.2]} 27... Rxf5 {[%clk 0:00:17.4]} 28. gxf5+ {[%clk 0:01:07.7]}
28... Kxf5 {[%clk 0:00:18]} 29. Bxa7 {[%clk 0:01:04.6]} 29... Kg4 {[%clk
0:00:16.3]} 30. a4 {[%clk 0:00:54.2]} 30... Kxh4 {[%clk 0:00:16.5]} 31. a5
{[%clk 0:00:54.7]} 31... Kg4 {[%clk 0:00:08.8]} 32. a6 {[%clk 0:00:54.7]} 32...
c6 {[%clk 0:00:03.1]} 33. Bb6 {[%clk 0:00:51]} 33... Bb8 {[%clk 0:00:03]} 34. a7
{[%clk 0:00:49.2]} 34... Bxa7 {[%clk 0:00:02.9]} 35. Bxa7 {[%clk 0:00:50.1]}
35... Kf3 {[%clk 0:00:02]} 36. Kd2 {[%clk 0:00:50]} 36... h5 {[%clk 0:00:02.2]}
37. Ke1 {[%clk 0:00:49.9]} 37... h4 {[%clk 0:00:02.7]} 38. Bb8 {[%clk
0:00:50.5]} 38... h3 {[%clk 0:00:02.9]} 39. Bc7 {[%clk 0:00:48.4]} 39... Kg2
{[%clk 0:00:02.2]} 40. Ke2 {[%clk 0:00:47.6]} 40... h2 {[%clk 0:00:02.5]} 41.
Bxh2 {[%clk 0:00:47.8]} 41... Kxh2 {[%clk 0:00:03.4]} 42. f4 {[%clk 0:00:48.4]}
42... Kg3 {[%clk 0:00:03.7]} 43. f5 {[%clk 0:00:49.3]} 43... Kf4 {[%clk
0:00:04.5]} 44. f6 {[%clk 0:00:49.8]} 44... Ke5 {[%clk 0:00:05.4]} 45. f7 {[%clk
0:00:50.6]} 45... Ke6 {[%clk 0:00:06.3]} 46. f8=Q {[%clk 0:00:51.5]} 46... Kd7
{[%clk 0:00:07.2]} 47. Kd3 {[%clk 0:00:50.3]} 47... Kc7 {[%clk 0:00:08.1]} 48.
Kc4 {[%clk 0:00:50.1]} 48... Kb6 {[%clk 0:00:09]} 49. Qb8+ {[%clk 0:00:50.4]}
49... Ka5 {[%clk 0:00:09.9]} 50. Qa7# {[%clk 0:00:49.1]} 1-0

[Event "*** Titled Tuesday Blitz"]
[Site "Chess.com"]
[Date "2021.04.27"]
[Round "5"]
[White "politeplayer"]
[Black "Redbandit87"]
[Result "0-1"]
[WhiteElo "2241"]
[BlackElo "2381"]
[TimeControl "180+1"]
[EndTime "10:56:12 PDT"]
[Termination "Redbandit87 won by resignation"]

1. e4 {[%clk 0:03:00.9]} 1... e5 {[%clk 0:02:52.7]} 2. Nf3 {[%clk 0:02:58.8]}
2... Nc6 {[%clk 0:02:51.5]} 3. d4 {[%clk 0:02:59.1]} 3... exd4 {[%clk
0:02:40.8]} 4. Bc4 {[%clk 0:02:59.4]} 4... Nf6 {[%clk 0:02:33]} 5. O-O {[%clk
0:02:57]} 5... Nxe4 {[%clk 0:02:32.2]} 6. Re1 {[%clk 0:02:55.9]} 6... d5 {[%clk
0:02:32.4]} 7. Bxd5 {[%clk 0:02:56.3]} 7... Qxd5 {[%clk 0:02:33.3]} 8. Nc3
{[%clk 0:02:56.4]} 8... Qa5 {[%clk 0:02:31.3]} 9. Nxe4 {[%clk 0:02:54.8]} 9...
Be6 {[%clk 0:02:31.4]} 10. Bg5 {[%clk 0:02:37.6]} 10... h6 {[%clk 0:02:09.1]}
11. Bh4 {[%clk 0:02:37]} 11... Bb4 {[%clk 0:01:31]} 12. Re2 {[%clk 0:02:21.5]}
12... Qb6 {[%clk 0:01:12.1]} 13. c3 {[%clk 0:02:03.4]} 13... dxc3 {[%clk
0:01:10]} 14. bxc3 {[%clk 0:01:57.8]} 14... Ba3 {[%clk 0:00:52.7]} 15. Rb1
{[%clk 0:01:55.4]} 15... Qa6 {[%clk 0:00:52.5]} 16. Ng3 {[%clk 0:00:27.1]} 16...
O-O {[%clk 0:00:48.3]} 17. Nh5 {[%clk 0:00:22]} 17... Bg4 {[%clk 0:00:40.1]} 18.
Ng3 {[%clk 0:00:09.5]} 18... g5 {[%clk 0:00:34.6]} 19. Bxg5 {[%clk 0:00:07.5]}
19... hxg5 {[%clk 0:00:32.2]} 20. Qd5 {[%clk 0:00:07.1]} 20... Be7 {[%clk
0:00:03.9]} 21. Rxe7 {[%clk 0:00:06.7]} 21... Nxe7 {[%clk 0:00:04.8]} 22. Qxg5+
{[%clk 0:00:06.9]} 22... Qg6 {[%clk 0:00:04.6]} 23. Qxe7 {[%clk 0:00:05.5]}
23... Qxb1+ {[%clk 0:00:04.6]} 24. Ne1 {[%clk 0:00:05.6]} 24... Rae8 {[%clk
0:00:04.4]} 25. Qg5+ {[%clk 0:00:05.5]} 25... Qg6 {[%clk 0:00:05]} 26. Qxg6+
{[%clk 0:00:04.2]} 26... fxg6 {[%clk 0:00:05.9]} 27. Nd3 {[%clk 0:00:04.6]}
27... Be2 {[%clk 0:00:06]} 28. Nf4 {[%clk 0:00:04.1]} 28... Bc4 {[%clk
0:00:06.3]} 29. h4 {[%clk 0:00:03.2]} 29... Re1+ {[%clk 0:00:06.4]} 30. Kh2
{[%clk 0:00:03.4]} 30... Rxf4 {[%clk 0:00:07]} 31. h5 {[%clk 0:00:03.3]} 31...
Rxf2 {[%clk 0:00:07.6]} 32. h6 {[%clk 0:00:02.9]} 32... Ree2 {[%clk 0:00:07.6]}
33. h7+ {[%clk 0:00:02.6]} 33... Kxh7 {[%clk 0:00:08.1]} 0-1

[Event "*** Titled Tuesday Blitz"]
[Site "Chess.com"]
[Date "2021.04.27"]
[Round "5"]
[White "metalbattler"]
[Black "chesslh19"]
[Result "1-0"]
[WhiteElo "2180"]
[BlackElo "2258"]
[TimeControl "180+1"]
[EndTime "10:56:12 PDT"]
[Termination "metalbattler won by checkmate"]

1. d4 {[%clk 0:03:00.9]} 1... Nf6 {[%clk 0:02:48.9]} 2. Bf4 {[%clk 0:03:00.7]}
2... d5 {[%clk 0:02:48.6]} 3. e3 {[%clk 0:03:00.7]} 3... c5 {[%clk 0:02:48]} 4.
c3 {[%clk 0:02:59.3]} 4... Nc6 {[%clk 0:02:48.5]} 5. Nd2 {[%clk 0:02:59.3]} 5...
e6 {[%clk 0:02:29.2]} 6. Ngf3 {[%clk 0:02:58]} 6... Bd6 {[%clk 0:02:29.1]} 7.
Bg3 {[%clk 0:02:57.1]} 7... O-O {[%clk 0:02:22.1]} 8. Bd3 {[%clk 0:02:56.6]}
8... b6 {[%clk 0:02:07.8]} 9. Ne5 {[%clk 0:02:54.9]} 9... Bb7 {[%clk 0:02:05.4]}
10. Nxc6 {[%clk 0:02:51.3]} 10... Bxc6 {[%clk 0:02:05]} 11. Nf3 {[%clk
0:02:51.5]} 11... Ne4 {[%clk 0:02:02.3]} 12. Ne5 {[%clk 0:02:42.8]} 12... Bb7
{[%clk 0:02:00.7]} 13. f3 {[%clk 0:02:41]} 13... Nxg3 {[%clk 0:01:54.5]} 14.
hxg3 {[%clk 0:02:40.4]} 14... h6 {[%clk 0:01:55.1]} 15. f4 {[%clk 0:02:34.2]}
15... Rc8 {[%clk 0:01:21.9]} 16. g4 {[%clk 0:02:32.2]} 16... Bxe5 {[%clk
0:00:46.2]} 17. dxe5 {[%clk 0:02:28]} 17... d4 {[%clk 0:00:45.4]} 18. g5 {[%clk
0:02:16.6]} 18... dxe3 {[%clk 0:00:31.2]} 19. gxh6 {[%clk 0:02:09.5]} 19... g6
{[%clk 0:00:28.4]} 20. Qe2 {[%clk 0:02:01]} 20... Qd5 {[%clk 0:00:23.4]} 21. Rh2
{[%clk 0:01:39.2]} 21... c4 {[%clk 0:00:20.6]} 22. Bc2 {[%clk 0:01:30.9]} 22...
Rfd8 {[%clk 0:00:19.4]} 23. Rd1 {[%clk 0:01:30.2]} 23... Qc5 {[%clk 0:00:14.1]}
24. Qg4 {[%clk 0:01:17.7]} 24... Rxd1+ {[%clk 0:00:13]} 25. Qxd1 {[%clk
0:01:01]} 25... Kh7 {[%clk 0:00:09.9]} 26. Qd7 {[%clk 0:00:28.6]} 26... Rc7
{[%clk 0:00:08.9]} 27. Qd8 {[%clk 0:00:19.4]} 27... Rc8 {[%clk 0:00:08.5]} 28.
Qf6 {[%clk 0:00:19]} 28... Qf8 {[%clk 0:00:08.6]} 29. Rh3 {[%clk 0:00:13.8]}
29... Rd8 {[%clk 0:00:08.6]} 30. Rg3 {[%clk 0:00:13.5]} 30... Rd7 {[%clk
0:00:02.5]} 31. Bxg6+ {[%clk 0:00:09.1]} 31... Kxh6 {[%clk 0:00:02.6]} 32. Rh3#
{[%clk 0:00:05.9]} 1-0

[Event "*** Titled Tuesday Blitz"]
[Site "Chess.com"]
[Date "2021.04.27"]
[Round "5"]
[White "Nils_03"]
[Black "lagedema"]
[Result "1/2-1/2"]
[WhiteElo "2426"]
[BlackElo "2578"]
[TimeControl "180+1"]
[EndTime "10:56:13 PDT"]
[Termination "Game drawn - insufficient material"]

1. d4 {[%clk 0:03:00.9]} 1... d5 {[%clk 0:02:59.5]} 2. c4 {[%clk 0:03:01.3]}
2... c6 {[%clk 0:02:56.8]} 3. Nf3 {[%clk 0:03:01.8]} 3... Nf6 {[%clk 0:02:55.5]}
4. e3 {[%clk 0:03:00.6]} 4... Bf5 {[%clk 0:02:53.8]} 5. Nc3 {[%clk 0:02:59.3]}
5... e6 {[%clk 0:02:53.4]} 6. Nh4 {[%clk 0:02:59.6]} 6... Be4 {[%clk 0:02:50.9]}
7. f3 {[%clk 0:02:59.4]} 7... Bg6 {[%clk 0:02:50.4]} 8. Nxg6 {[%clk 0:02:56]}
8... hxg6 {[%clk 0:02:49.7]} 9. Bd3 {[%clk 0:02:56.5]} 9... Nbd7 {[%clk
0:02:46.9]} 10. Qb3 {[%clk 0:02:48.7]} 10... Qc7 {[%clk 0:02:43.4]} 11. Bd2
{[%clk 0:02:46.5]} 11... dxc4 {[%clk 0:02:38.7]} 12. Bxc4 {[%clk 0:02:45.5]}
12... b5 {[%clk 0:02:39.5]} 13. Bxe6 {[%clk 0:02:25.7]} 13... fxe6 {[%clk
0:02:38.2]} 14. Qxe6+ {[%clk 0:02:26.3]} 14... Be7 {[%clk 0:02:37.5]} 15. Ne4
{[%clk 0:02:24.3]} 15... Nxe4 {[%clk 0:02:35.7]} 16. Qxg6+ {[%clk 0:02:23.6]}
16... Kf8 {[%clk 0:02:32.9]} 17. fxe4 {[%clk 0:02:21.5]} 17... Qd6 {[%clk
0:02:28.9]} 18. Rf1+ {[%clk 0:02:20]} 18... Kg8 {[%clk 0:02:26.1]} 19. Qf7+
{[%clk 0:02:18.1]} 19... Kh7 {[%clk 0:02:25.7]} 20. Rf3 {[%clk 0:02:14.4]} 20...
Bh4+ {[%clk 0:02:23.5]} 21. Ke2 {[%clk 0:02:06.8]} 21... Raf8 {[%clk 0:02:19.8]}
22. Qh5+ {[%clk 0:01:55.3]} 22... Kg8 {[%clk 0:02:18.9]} 23. Rxf8+ {[%clk
0:01:47]} 23... Nxf8 {[%clk 0:02:15.6]} 24. Qg4 {[%clk 0:01:43.4]} 24... Qxh2
{[%clk 0:02:12.9]} 25. Bb4 {[%clk 0:01:39.3]} 25... Qg3 {[%clk 0:02:11.1]} 26.
Qxg3 {[%clk 0:01:35.6]} 26... Bxg3 {[%clk 0:02:10.7]} 27. Rf1 {[%clk 0:01:36.2]}
27... Ng6 {[%clk 0:02:08.6]} 28. Rc1 {[%clk 0:01:34.9]} 28... Rh2 {[%clk
0:02:05.4]} 29. Kf3 {[%clk 0:01:26.5]} 29... Bh4 {[%clk 0:01:56.5]} 30. Rxc6
{[%clk 0:01:25.1]} 30... Kh7 {[%clk 0:01:55.7]} 31. e5 {[%clk 0:01:22.3]} 31...
Bg5 {[%clk 0:01:53.1]} 32. e6 {[%clk 0:01:06.4]} 32... Nh4+ {[%clk 0:01:50.5]}
33. Ke4 {[%clk 0:01:05.9]} 33... Ng6 {[%clk 0:01:32.2]} 34. Rc5 {[%clk
0:00:53.2]} 34... Be7 {[%clk 0:01:28.6]} 35. Rxb5 {[%clk 0:00:53.4]} 35... Rxg2
{[%clk 0:01:26.8]} 36. Bxe7 {[%clk 0:00:50.1]} 36... Nxe7 {[%clk 0:01:27.7]} 37.
Rb7 {[%clk 0:00:45]} 37... Ng8 {[%clk 0:01:20.6]} 38. e7 {[%clk 0:00:39.2]}
38... Rg6 {[%clk 0:01:17.5]} 39. Ke5 {[%clk 0:00:29.6]} 39... Nf6 {[%clk
0:01:14.1]} 40. Rxa7 {[%clk 0:00:29]} 40... Rg3 {[%clk 0:01:10.3]} 41. e4 {[%clk
0:00:27.9]} 41... Re3 {[%clk 0:01:09]} 42. Kf5 {[%clk 0:00:26.3]} 42... Rxe4
{[%clk 0:01:06.4]} 43. Ra6 {[%clk 0:00:21.8]} 43... Rxe7 {[%clk 0:00:51.3]} 44.
Rxf6 {[%clk 0:00:16.5]} 44... gxf6 {[%clk 0:00:50.4]} 45. Kxf6 {[%clk
0:00:17.4]} 45... Ra7 {[%clk 0:00:49.6]} 46. d5 {[%clk 0:00:15.6]} 46... Rxa2
{[%clk 0:00:49]} 47. d6 {[%clk 0:00:16.1]} 47... Rxb2 {[%clk 0:00:47.6]} 48. d7
{[%clk 0:00:16.3]} 48... Rd2 {[%clk 0:00:47.1]} 49. Ke7 {[%clk 0:00:16.5]} 49...
Rxd7+ {[%clk 0:00:46.2]} 50. Kxd7 {[%clk 0:00:16.8]} 1/2-1/2